bitfinex/quotes_ETHUSD_20220123
["timestamp","ask_amount","ask_price","bid_price","bid_amount"]
[1642899687384,3.58139,2447.1,2446.1,3.9103]
[1642899687684,1.08599,2447.0,2446.2,1.46314844]
[1642899687979,0.492,2446.9,2446.3,0.00397897]
[1642899688182,0.00113684,2447.4,2446.5,0.01207117]
[1642899688379,0.492,2447.3,2446.5,0.01207117]
[1642899688627,0.49370527,2447.3,2446.6,0.0022737]
[1642899688828,0.00113684,2447.2,2446.6,0.0022737]
[1642899689431,0.492,2447.1,2446.6,0.0022737]
[1642899689628,0.492,2447.1,2446.4,0.00341054]
[1642899689830,0.492,2447.1,2446.5,0.00284212]
[1642899690035,0.492,2447.1,2446.4,0.00341054]
[1642899690234,0.492,2447.1,2446.7,1.44439085]
[1642899690629,0.492,2447.1,2446.8,0.00113685]
[1642899691430,0.14019,2446.9,2446.8,0.00113685]
[1642899691633,0.63219,2446.9,2446.4,0.00341054]
[1642899691829,0.63219,2446.9,2446.0,3.48380868]
[1642899692029,0.93219,2446.9,2446.1,3.43324025]
[1642899692431,0.492,2446.9,2446.3,1.40950244]
[1642899692613,0.792,2446.9,2446.3,1.40950244]
[1642899692817,0.93219,2446.9,2446.4,0.00341054]
[1642899693012,1.01757,2446.9,2446.4,0.00341054]
[1642899693215,1.01757,2446.9,2445.7,3.83232229]
[1642899693216,1.02311,2446.8,2446.0,0.00568424]
[1642899693416,0.492,2446.7,2445.8,0.00682109]
[1642899694013,0.492,2446.7,2445.8,2.33210161]
[1642899694215,2.04624,2447.0,2446.8,3.21779237]
[1642899694417,0.492,2446.9,2446.8,3.21779237]
[1642899694814,0.492,2446.9,2446.8,3.21892922]
[1642899695816,0.492,2446.9,2446.8,3.16892922]
[1642899697027,0.492,2446.9,2445.7,7.49503208]
[1642899697028,0.63219,2446.9,2445.8,2.35316743]
[1642899697230,0.63219,2446.9,2445.7,7.48]
[1642899697427,0.63219,2446.9,2445.8,0.00568424]
[1642899697628,1.02311,2446.8,2445.8,0.00568424]
[1642899697829,0.492,2446.7,2445.9,1.5386431]
[1642899698229,1.93219,2446.7,2446.0,0.00454739]
[1642899698628,0.63219,2446.7,2446.0,0.00454739]
[1642899699133,1.10937,2446.6,2446.0,0.00454739]
[1642899699330,1.10937,2446.6,2445.7,0.00625266]
[1642899699331,1.02335,2446.3,2445.7,0.00625266]
[1642899699533,1.02335,2446.3,2445.3,0.00852635]
[1642899699534,0.57805,2446.2,2445.3,0.00852635]
[1642899700006,0.57805,2446.2,2445.2,0.00909478]
[1642899700197,0.14019,2446.1,2445.2,0.00909478]
[1642899700395,0.492,2446.0,2445.2,0.00909478]
[1642899700612,1.02349,2445.9,2445.2,0.00909478]
[1642899700800,0.492,2445.8,2445.2,0.00909478]
[1642899700997,0.492,2445.8,2445.1,0.0096632]
[1642899701397,0.492,2445.8,2445.3,1.44699958]
[1642899701797,0.492,2445.8,2445.4,0.00795793]
[1642899702800,0.492,2445.8,2444.7,1.96280576]
[1642899702801,0.04494202,2445.7,2444.5,1.66096136]
[1642899703103,1.02378,2445.5,2444.6,0.00454739]
[1642899703306,0.492,2445.4,2444.6,0.00454739]
[1642899703496,1.092,2445.4,2444.6,0.00454739]
[1642899703944,1.23219,2445.4,2444.6,0.00454739]
[1642899704544,1.31824,2445.4,2444.6,0.00454739]
[1642899704744,1.31824,2445.4,2444.4,9.74381915]
[1642899704950,0.00397897,2445.3,2444.8,0.00270747]
[1642899705147,0.492,2445.2,2444.8,0.00270747]
[1642899705348,0.49541054,2445.2,2444.8,0.00270747]
[1642899705549,0.00284212,2445.1,2444.8,0.00270747]
[1642899705751,0.492,2445.0,2444.8,0.00270747]
[1642899705948,0.4942737,2445.0,2444.8,0.00270747]
[1642899706147,0.00170527,2444.9,2444.8,0.00270747]
[1642899706348,0.49370527,2444.9,2444.8,0.00270747]
[1642899707387,0.74019,2445.4,2444.9,3.18741053]
[1642899707388,0.08604,2445.4,2444.9,3.18741053]
[1642899707588,0.492,2445.3,2445.0,2.35379962]
[1642899707790,1.06859352,2445.7,2445.0,2.35379962]
[1642899707791,0.00170527,2445.2,2445.0,2.35379962]
[1642899707993,0.00170527,2445.2,2445.1,3.64949649]
[1642899708190,0.492,2446.0,2445.1,3.64949649]
[1642899708494,0.00397897,2445.6,2445.1,3.64949649]
[1642899708886,0.00341054,2445.5,2445.1,3.64949649]
[1642899709088,0.00341054,2445.5,2445.1,5.14695785]
[1642899709287,0.00284212,2445.4,2445.1,5.14695785]
[1642899709488,0.00284212,2445.4,2445.1,3.64949649]
[1642899709689,0.0022737,2445.3,2445.1,5.14695785]
[1642899709991,0.492,2446.0,2445.1,5.14695785]
[1642899709992,0.00170527,2445.2,2445.1,3.64949649]
[1642899710189,0.00170527,2445.2,2445.1,3.85379649]
[1642899710389,0.00170527,2445.2,2445.1,3.64949649]
[1642899710889,5.27e-06,2445.2,2445.1,6.43383993]
[1642899711141,0.492,2446.3,2445.3,0.00079473]
[1642899711438,0.61898236,2446.7,2445.3,0.00079473]
[1642899711439,0.00397897,2445.9,2445.8,0.03005949]
[1642899711639,7.897e-05,2445.9,2445.8,2.9178]
[1642899711836,0.00795793,2446.6,2445.9,0.01221893]
[1642899712136,0.00348951,2446.5,2446.0,27.74066658]
[1642899712335,0.00348951,2446.5,2446.1,9.81743935]
[1642899712536,0.00292109,2446.4,2446.1,8.69551741]
[1642899712737,0.00292109,2446.4,2446.2,1.34325877]
[1642899712937,0.57808,2447.3,2446.2,1.34325877]
[1642899712938,0.00235266,2446.3,2446.2,1.34325877]
[1642899713341,0.00235266,2446.3,2446.2,2.99325877]
[1642899714138,0.57808,2447.3,2446.9,0.00470532]
[1642899714540,0.00511581,2447.2,2446.9,0.00470532]
[1642899714885,0.09056739,2447.1,2446.9,0.00470532]
[1642899715089,0.00454739,2447.1,2446.9,0.00470532]
[1642899715285,0.08988897,2447.0,2446.9,1.29363719]
[1642899715487,0.00397897,2447.0,2446.9,1.29363719]
[1642899715689,0.00397897,2447.0,2446.9,0.00470532]
[1642899716290,0.00397897,2447.0,2446.9,2.55470532]
[1642899717191,0.00397897,2447.0,2446.9,3.6858632]
[1642899717988,0.00397897,2447.0,2446.9,7.16329088]
[1642899718384,0.00397897,2447.0,2446.9,3.8901632]
[1642899719848,0.00397897,2447.0,2446.9,7.36752264]
[1642899720244,7.897e-05,2447.0,2446.9,6.6764565]
[1642899720446,0.12722,2447.9,2447.1,0.03863616]
[1642899720646,2e-05,2447.9,2447.4,0.04762906]
[1642899720844,3.54,2448.7,2447.4,0.04762906]
[1642899720845,0.04,2448.7,2447.7,0.01460362]
[1642899721045,0.04,2448.7,2447.8,0.1633]
[1642899721249,0.00909477,2448.6,2447.9,0.2043]
[1642899721447,0.00909477,2448.6,2448.0,1.35686139]
[1642899721645,0.00852635,2448.5,2448.1,2.39619111]
[1642899722044,0.00795792,2448.4,2448.1,2.39619111]
[1642899722245,0.00795792,2448.4,2448.3,2.7543]
[1642899722487,0.04,2448.7,2448.3,5.35714862]
[1642899722685,0.0001,2448.8,2448.4,26.47]
[1642899722884,0.00909477,2448.6,2448.5,27.1208249]
[1642899723081,0.00909477,2448.6,2448.5,0.2043]
[1642899723282,0.00909477,2448.6,2448.5,2.7543]
[1642899723484,0.00909477,2448.6,2448.5,2.55]
[1642899723684,0.00909477,2448.6,2448.5,2.9176]
[1642899724088,0.00909477,2448.6,2448.5,0.1633]
[1642899724283,0.00909477,2448.6,2448.4,0.04405795]
[1642899724686,0.00852635,2448.5,2448.4,0.04405795]
[1642899725185,0.00852635,2448.5,2448.4,26.7860689]
[1642899725186,2.635e-05,2448.5,2448.4,26.7860689]
[1642899725385,2.635e-05,2448.5,2448.4,26.96142065]
[1642899725592,2.635e-05,2448.5,2448.4,0.4237097]
[1642899726236,2.635e-05,2448.5,2448.4,2.4737097]
[1642899726635,2.635e-05,2448.5,2448.4,26.3937097]
[1642899727237,0.0001,2448.8,2448.4,26.3937097]
[1642899727238,0.0001,2448.8,2448.6,0.00077365]
[1642899727435,0.0001,2448.8,2448.7,2.7133]
[1642899727636,0.0001,2448.8,2448.7,31.55094833]
[1642899727842,0.0001,2448.8,2448.7,31.85094833]
[1642899728334,0.0001,2449.6,2448.8,2.55]
[1642899728541,0.04,2450.2,2449.3,0.01219767]
[1642899728748,0.04,2450.2,2449.4,0.2043]
[1642899728950,0.0001,2450.4,2449.6,2.55]
[1642899729140,0.0001,2450.4,2449.9,0.01235311]
[1642899729334,0.01023162,2450.3,2450.0,0.2043]
[1642899729536,0.01023162,2450.3,2450.2,3.88247723]
[1642899729734,0.0001,2450.4,2450.2,29.21511092]
[1642899729992,0.0001,2450.4,2450.2,24.1243]
[1642899730194,0.0001,2450.4,2450.2,0.2043]
[1642899730411,0.0001,2450.4,2449.7,0.13819997]
[1642899730799,0.0001,2450.4,2449.7,1.71309475]
[1642899730994,0.0001,2450.4,2449.7,24.26249997]
[1642899731494,0.0001,2450.4,2449.7,0.34249997]
[1642899732000,0.0001,2450.4,2449.5,3.8963]
[1642899732194,0.0001,2450.4,2449.3,0.2043]
[1642899732395,0.0001,2450.4,2449.3,2.68438193]
[1642899732996,0.0001,2450.4,2449.3,3.29650742]
[1642899733195,0.0001,2450.4,2449.4,28.39325173]
[1642899733397,0.0001,2450.4,2449.9,0.01204754]
[1642899733651,0.0001,2450.4,2450.0,0.2043]
[1642899734245,0.04,2451.2,2451.1,0.0007]
[1642899734639,0.04,2451.2,2451.1,25.49477736]
[1642899735138,0.61930114,2452.2,2451.1,1.37047736]
[1642899735139,0.61187683,2452.2,2451.1,1.37047736]
[1642899735340,0.61187683,2452.2,2451.1,1.32047736]
[1642899735640,1.36267156,2452.0,2451.1,1.32047736]
[1642899735940,0.04695422,2451.6,2451.2,0.00454739]
[1642899736138,0.61187683,2452.2,2451.5,1.5]
[1642899736139,0.492,2452.1,2451.5,1.5]
[1642899736342,0.492,2452.1,2451.5,1.48582324]
[1642899736542,0.492,2452.1,2451.6,0.00227369]
[1642899737525,0.01258741,2451.9,2451.6,7.369e-05]
[1642899737795,2.55,2451.6,2451.5,1.48582324]
[1642899737994,2.87117,2451.5,2450.3,2.44526526]
[1642899738195,2.87117,2451.5,2450.2,0.163]
[1642899738196,1.492,2451.5,2450.2,0.163]
[1642899738393,0.492,2451.5,2451.0,1.44652232]
[1642899738794,0.492,2451.5,2451.2,1.5]
[1642899739194,0.492,2451.5,2451.3,0.00170527]
[1642899739399,1.00170527,2451.9,2451.3,0.00170527]
[1642899739400,0.00170527,2451.9,2451.3,0.00170527]
[1642899739599,0.00170527,2451.9,2451.3,2.57164666]
[1642899739794,0.00113684,2451.8,2451.6,1.20369262]
[1642899739996,0.00113684,2451.8,2451.4,0.00113685]
[1642899740197,0.00284211,2452.1,2451.4,0.00113685]
[1642899740394,1.36267156,2451.8,2451.4,0.00113685]
[1642899740596,1.36267156,2451.8,2451.3,0.00170527]
[1642899740801,0.50483224,2451.7,2451.3,0.00170527]
[1642899740997,0.64502224,2451.7,2451.3,0.00170527]
[1642899741234,0.64502224,2451.7,2451.1,0.00284212]
[1642899741432,0.08685181,2451.6,2451.1,0.00284212]
[1642899741635,0.492,2451.5,2451.1,0.00284212]
[1642899741837,0.492,2451.4,2451.1,0.00284212]
[1642899742039,0.492,2451.3,2451.1,0.00284212]
[1642899742234,0.01283224,2451.7,2451.1,0.00284212]
[1642899742235,0.492,2451.2,2451.1,0.00284212]
[1642899742435,0.492,2451.5,2451.3,0.98399999]
[1642899742842,0.492,2451.5,2451.4,0.00113685]
[1642899744440,0.63219,2451.5,2451.4,0.00113685]
[1642899744883,0.492,2451.5,2451.4,0.00113685]
[1642899746787,2.04024181,2451.5,2451.4,0.45]
[1642899746986,2.33443629,2451.5,2451.4,0.45]
[1642899747188,2.08777448,2451.5,2450.6,1.45441495]
[1642899747486,3.64357035,2451.5,2450.7,0.00397897]
[1642899747688,1.0,2451.4,2450.7,0.00397897]
[1642899747984,0.492,2451.3,2450.4,0.00568424]
[1642899748185,0.792,2451.3,2450.4,0.00568424]
[1642899748386,1.02136,2451.1,2450.4,0.00568424]
[1642899748644,0.492,2451.0,2450.4,0.00568424]
[1642899748832,0.14019,2450.9,2450.4,1.3826826]
[1642899749130,0.14019,2450.9,2450.5,0.00511581]
[1642899749131,0.492,2450.8,2450.5,0.00511581]
[1642899749331,0.792,2450.8,2450.5,0.00511581]
[1642899749531,0.792,2450.8,2450.4,0.00568424]
[1642899749738,0.492,2450.8,2450.4,0.00568424]
[1642899750633,0.492,2450.8,2450.6,1.40234694]
[1642899751033,0.14019,2451.1,2450.8,0.98399999]
[1642899751234,0.492,2451.0,2450.8,0.98399999]
[1642899751434,0.492,2451.0,2450.9,1.60284212]
[1642899752489,0.492,2451.0,2450.9,0.00284212]
[1642899753390,0.60028155,2451.5,2450.9,0.00284212]
[1642899753591,0.00227369,2452.0,2451.0,1.26261168]
[1642899753995,0.00284212,2451.9,2451.1,0.00170527]
[1642899754190,0.00284212,2451.9,2451.7,1.49124012]
[1642899754391,0.85083825,2452.5,2452.3,1.01512978]
[1642899754591,0.63219,2452.4,2452.3,1.01512978]
[1642899754895,0.93219,2452.4,2452.3,1.01512978]
[1642899755395,0.10537486,2451.8,2451.6,1.5]
[1642899755792,0.492,2452.0,2451.7,0.00113685]
[1642899756157,0.14019,2451.8,2451.7,0.00113685]
[1642899756336,0.63219,2451.8,2451.7,0.00113685]
[1642899756535,0.93219,2451.8,2451.7,0.00113685]
[1642899756738,2.26919906,2451.8,2451.7,0.00113685]
[1642899756937,1.23219,2451.8,2451.7,0.00113685]
[1642899757138,0.492,2451.8,2451.7,0.00113685]
[1642899757544,0.14019,2452.2,2451.8,0.98399999]
[1642899757739,0.492,2452.1,2451.8,0.98399999]
[1642899758039,1.36267156,2452.0,2451.8,0.98399999]
[1642899758339,0.492,2451.9,2451.8,0.98399999]
[1642899762287,0.442,2451.9,2451.8,0.98399999]
[1642899764529,0.442,2451.9,2451.8,4.4558744]
[1642899767384,0.442,2451.9,2451.8,0.98399999]
[1642899768384,0.442,2451.9,2451.8,4.4558988]
[1642899768585,0.442,2451.9,2451.8,0.98399999]
[1642899768786,0.442,2451.9,2451.8,4.4558988]
[1642899769086,0.442,2451.9,2451.8,4.45588783]
[1642899769289,0.58219,2451.9,2451.8,0.98399999]
[1642899770509,0.63219,2451.6,2451.1,3.4756338]
[1642899771003,1.9534136,2451.6,2451.1,3.4756338]
[1642899771459,2.9534136,2451.6,2451.1,3.4756338]
[1642899772256,0.492,2451.6,2451.1,3.4756338]
[1642899772756,0.492,2451.6,2451.2,1.45766888]
[1642899772955,0.492,2451.6,2451.3,3.47222326]
[1642899773161,0.492,2451.6,2451.3,3.47449695]
[1642899773357,0.492,2451.6,2451.2,1.45766888]
[1642899773358,0.492,2451.6,2451.4,0.00170527]
[1642899773756,0.492,2451.6,2451.3,3.47465749]
[1642899773956,0.492,2451.6,2451.4,0.00170527]
[1642899774757,0.492,2451.6,2451.2,0.00284212]
[1642899774996,0.492,2451.6,2451.2,1.40256405]
[1642899775198,0.492,2451.6,2451.3,3.47244517]
[1642899775400,0.00170527,2451.5,2451.0,1.26261168]
[1642899775599,0.492,2451.4,2451.1,3.47245238]
[1642899775805,0.49313685,2451.4,2451.1,3.47245238]
[1642899776804,0.14019,2451.7,2451.4,0.9862737]
[1642899777002,0.492,2451.6,2451.4,0.9862737]
[1642899777202,0.00113685,2451.6,2451.5,2.29735512]
[1642899777502,0.00113685,2451.6,2451.5,3.4719929]
[1642899777701,0.00113685,2451.6,2451.5,4.81895727]
[1642899778002,0.10573685,2452.1,2451.6,2.55]
[1642899778405,0.00227369,2452.0,2451.6,2.55]
[1642899778849,0.00170527,2451.9,2451.6,2.55]
[1642899779049,0.00170527,2451.9,2451.6,1.5]
[1642899779249,0.00113684,2451.8,2451.6,1.5]
[1642899779452,0.00113684,2451.8,2451.5,1.34696437]
[1642899779650,0.00113684,2451.8,2451.4,2.45186592]
[1642899780550,0.00113684,2451.8,2451.5,2.44305483]
[1642899780752,3.684e-05,2451.8,2451.6,0.04405795]
[1642899780955,3.684e-05,2451.8,2451.6,0.04515795]
[1642899781152,3.684e-05,2451.8,2451.7,2.7543]
[1642899781350,3.684e-05,2451.8,2451.7,10.03133735]
[1642899781749,3.684e-05,2451.8,2451.7,8.93359513]
[1642899783002,3.684e-05,2451.8,2451.7,6.36345566]
[1642899783409,3.684e-05,2451.8,2451.7,2.68819997]
[1642899783608,3.684e-05,2451.8,2451.7,0.13819997]
[1642899784203,3.684e-05,2451.8,2451.6,0.0011]
[1642899784708,0.63219,2451.7,2451.5,0.00166843]
[1642899784906,2.25,2451.6,2451.4,4.213e-05]
[1642899785107,1.13618271,2450.9,2450.2,0.163]
[1642899785306,1.02154,2450.7,2450.2,0.163]
[1642899785506,0.492,2450.6,2450.3,0.00682108]
[1642899785704,1.8,2450.3,2449.4,1.51810167]
[1642899785907,0.63219,2450.2,2449.3,1.51810167]
[1642899786200,0.35889875,2449.5,2449.4,3.47829857]
[1642899786389,0.35889875,2449.5,2449.0,1.51810167]
[1642899786589,0.492,2449.4,2448.9,2.30880167]
[1642899786788,0.492,2449.4,2449.1,0.00170527]
[1642899789594,0.14019,2449.2,2449.0,0.00227369]
[1642899789793,0.14019,2449.2,2448.9,0.7907]
[1642899789794,0.492,2449.1,2448.9,0.7907]
[1642899790007,1.5,2448.8,2448.3,0.1633]
[1642899790209,1.19459048,2448.5,2448.3,0.1633]
[1642899790406,1.19459048,2448.5,2448.4,0.00341055]
[1642899790613,2.07678048,2448.5,2448.4,0.00341055]
[1642899791010,0.492,2448.5,2448.4,0.00341055]
[1642899791311,1.0,2449.1,2448.4,0.00341055]
[1642899791312,0.492,2449.1,2448.4,0.00341055]
[1642899791711,0.492,2449.1,2448.1,0.00511582]
[1642899791907,0.442,2449.1,2448.9,1.54384281]
[1642899792109,3.1569889,2449.7,2448.9,1.54384281]
[1642899792110,0.492,2449.7,2448.9,1.54384281]
[1642899792308,0.492,2449.7,2449.0,2.33631335]
[1642899792514,0.00341054,2449.6,2449.0,2.32615116]
[1642899792708,0.00341054,2449.6,2448.9,1.54384281]
[1642899792908,0.492,2449.7,2448.9,1.54384281]
[1642899792909,0.00284211,2449.5,2448.9,1.54384281]
[1642899793209,0.00227369,2449.4,2448.9,1.54384281]
[1642899793660,0.00170527,2449.3,2448.9,1.54384281]
[1642899794057,0.00113684,2449.2,2448.9,1.54384281]
[1642899794457,1.02531054,2449.6,2448.7,1.40128159]
[1642899794859,0.88503211,2449.5,2448.8,0.00113685]
[1642899795258,0.00227369,2449.4,2448.5,0.00284212]
[1642899795661,0.00227369,2449.4,2448.7,1.31991315]
[1642899795662,0.00170527,2449.3,2448.7,1.31991315]
[1642899796062,0.00113684,2449.2,2448.8,2.37978314]
[1642899796467,0.00284211,2449.5,2448.8,2.58408314]
[1642899796659,0.00284211,2449.5,2449.4,1.43437957]
[1642899796858,0.60752051,2450.2,2449.6,0.00852633]
[1642899797258,0.00511581,2449.9,2449.6,0.00852633]
[1642899797514,3.68414,2449.7,2448.8,0.00113685]
[1642899797710,0.492,2449.6,2448.8,0.00113685]
[1642899797906,0.492,2449.6,2448.2,0.01229589]
[1642899797907,0.49541054,2449.6,2448.6,0.0022737]
[1642899798109,1.29718018,2449.1,2448.5,1.21268291]
[1642899798316,1.29718018,2449.1,2448.2,0.01229589]
[1642899798317,0.3,2449.0,2448.3,0.00397897]
[1642899798510,0.3,2449.0,2448.0,0.1633]
[1642899798511,0.58219,2448.9,2448.0,0.1633]
[1642899798713,2.04469,2448.8,2448.0,0.1633]
[1642899798908,0.492,2448.7,2448.1,0.00284212]
[1642899799112,0.792,2448.7,2448.1,0.00284212]
[1642899799310,0.56264926,2448.6,2448.1,0.00284212]
[1642899799512,1.55,2448.3,2448.0,0.1633]
[1642899799710,1.10436638,2448.4,2448.0,0.1633]
[1642899799711,0.492,2448.2,2448.0,0.1633]
[1642899799910,0.492,2448.1,2447.6,0.04405795]
[1642899800314,0.492,2448.1,2447.7,0.00227369]
[1642899800509,0.492,2448.1,2447.9,1.13881621]
[1642899800911,0.492,2448.1,2447.7,0.00227369]
[1642899801579,0.00113685,2448.3,2447.7,0.00227369]
[1642899802260,0.00113685,2448.3,2448.2,1.19294698]
[1642899802462,0.00113685,2448.3,2447.7,0.00227369]
[1642899803662,0.00113685,2448.3,2448.2,1.182403]
[1642899806111,0.00113685,2448.3,2447.9,1.30667304]
[1642899806310,0.00113685,2448.3,2447.7,0.00227369]
[1642899806510,0.00113685,2448.3,2447.7,3.47781076]
[1642899806710,0.00113685,2448.3,2447.7,0.00227369]
[1642899806913,0.162,2448.2,2447.8,0.00170527]
[1642899807113,0.00113685,2448.3,2447.8,1.17230373]
[1642899807412,0.00113685,2448.3,2447.9,1.49978387]
[1642899807811,0.00113685,2448.3,2447.9,0.00113684]
[1642899808860,0.02,2535.0,2447.9,0.00113684]
[1642899809063,0.02,2535.0,2449.1,0.01293818]
[1642899809064,1.42787207,2450.4,2449.1,0.01293818]
[1642899809266,0.04,2450.6,2449.7,0.01251214]
[1642899809471,1.0,2451.2,2449.3,0.0881438]
[1642899809472,1.0,2451.2,2450.3,0.01223592]
[1642899809675,0.04,2451.5,2450.5,0.07459918]
[1642899809862,0.00011054,2451.5,2450.8,2.55]
[1642899810067,1.22769868,2452.9,2451.5,0.07515203]
[1642899810068,6.853e-05,2451.9,2451.5,0.07515203]
[1642899810264,0.00257195,2452.8,2451.8,2.56246656]
[1642899810466,0.00257195,2452.8,2451.9,0.91595651]
[1642899810664,0.2105558,2453.6,2452.4,0.01225759]
[1642899810865,0.2105558,2453.6,2452.7,0.01236477]
[1642899811063,0.1575558,2453.6,2453.0,2.55]
[1642899811268,0.1575558,2453.6,2453.1,0.54416838]
[1642899811466,0.09,2454.1,2453.3,2.55]
[1642899811668,0.01284383,2455.7,2453.5,0.03705782]
[1642899811868,7.369e-05,2453.8,2453.7,2.55]
[1642899812070,1.581e-05,2454.3,2453.7,11.486076]
[1642899812266,0.02485607,2456.2,2454.4,0.01422106]
[1642899812566,0.02485607,2456.2,2455.8,1.43345568]
[1642899812948,0.02485607,2456.2,2455.9,0.492]
[1642899813553,0.02485607,2456.2,2455.2,1.492]
[1642899813750,0.91936,2456.1,2455.2,1.492]
[1642899813950,0.91936,2456.1,2455.2,1.452]
[1642899814152,0.0096632,2456.0,2455.2,0.96]
[1642899814350,1.22737656,2455.8,2455.2,1.53881779]
[1642899814554,1.22737656,2455.8,2454.6,3.77554754]
[1642899814555,0.67502483,2455.4,2454.6,3.77554754]
[1642899814757,0.67502483,2455.4,2454.6,1.0]
[1642899814954,0.00568423,2455.3,2454.6,1.0]
[1642899815153,0.00568423,2455.3,2454.4,0.01422106]
[1642899815355,11.55741,2456.5,2454.4,0.01422106]
[1642899815356,0.00511581,2455.2,2454.4,0.01422106]
[1642899815556,1.581e-05,2455.2,2454.4,0.50622106]
[1642899815754,4.739e-05,2455.1,2454.5,2.67258164]
[1642899815952,4.739e-05,2455.1,2454.6,0.492]
[1642899816195,4.739e-05,2455.1,2454.7,3.83735949]
[1642899816394,4.739e-05,2455.1,2454.8,0.492]
[1642899816694,4.739e-05,2455.1,2455.0,2.7543]
[1642899816893,2.03817,2457.0,2456.3,0.04980691]
[1642899817398,0.00513162,2456.9,2456.3,0.04980691]
[1642899817892,0.71163637,2456.7,2456.3,0.04980691]
[1642899818092,0.0045632,2456.8,2456.3,0.04980691]
[1642899818291,0.00342635,2456.6,2456.3,0.04980691]
[1642899818494,0.00399477,2456.7,2456.3,0.04980691]
[1642899818694,1.2295358,2457.2,2456.3,0.04980691]
[1642899818695,0.00285793,2456.5,2456.3,0.04980691]
[1642899818893,0.00342635,2456.6,2456.4,3.61574002]
[1642899819097,0.2105558,2457.2,2456.5,5.85803405]
[1642899819292,0.2105558,2457.2,2456.5,1.18893117]
[1642899819497,0.00626847,2457.1,2456.5,1.18893117]
[1642899819696,0.00626847,2457.1,2456.6,3.07568919]
[1642899819906,0.00570004,2457.0,2456.9,2.5624762]
[1642899820103,0.00570004,2457.0,2456.9,2.55]
[1642899820303,0.00570004,2457.0,2456.9,2.55106838]
[1642899820506,0.06261825,2457.9,2457.3,0.43251168]
[1642899820702,1.01863,2457.8,2457.3,0.43251168]
[1642899820907,1.01863,2457.8,2457.4,0.0039263]
[1642899821303,1.31863,2457.8,2457.4,0.0039263]
[1642899821502,1.31863,2457.8,2457.3,0.43251168]
[1642899821503,1.56863,2457.8,2457.3,0.43251168]
[1642899821705,1.51253527,2457.7,2456.3,0.04980691]
[1642899821905,1.34144842,2456.9,2456.3,0.04980691]
[1642899822104,1.34144842,2456.9,2456.4,0.00568424]
[1642899822507,1.64144842,2456.9,2456.4,0.00568424]
[1642899822903,2.66048842,2456.9,2456.4,0.00568424]
[1642899823110,2.55,2456.7,2456.3,0.04980691]
[1642899823307,2.55,2456.7,2455.2,1.0]
[1642899823308,1.01943,2456.3,2455.1,1.0]
[1642899823770,0.3,2456.2,2455.2,2.31837371]
[1642899823970,0.3,2456.3,2455.2,2.31837371]
[1642899823971,2.55,2456.4,2455.2,2.31837371]
[1642899824170,2.03912,2456.2,2455.3,0.00625266]
[1642899824370,1.41974965,2456.0,2455.3,0.00625266]
[1642899824570,1.0,2456.3,2455.4,1.19363358]
[1642899824571,1.0,2456.1,2455.4,1.19363358]
[1642899824770,1.0,2456.1,2455.3,0.00625266]
[1642899824971,0.00113685,2456.6,2455.5,0.00511581]
[1642899824972,1.0,2456.3,2455.5,0.00511581]
[1642899825175,0.6,2456.3,2455.3,0.00625266]
[1642899825371,1.0193,2456.2,2455.1,0.0073895]
[1642899825671,0.3,2456.1,2455.1,0.0073895]
[1642899826074,0.3,2456.1,2455.1,2.40423402]
[1642899826276,1.01927,2456.5,2455.1,2.41582597]
[1642899826472,1.0,2456.1,2455.1,0.0073895]
[1642899826671,0.3,2456.1,2455.1,0.0073895]
[1642899826874,1.01927,2456.5,2454.8,3.34069228]
[1642899826875,1.01927,2456.5,2454.9,0.00852635]
[1642899827073,1.01927,2456.5,2455.0,1.29554388]
[1642899827278,1.61927,2456.5,2455.4,1.26933128]
[1642899827505,1.61927,2456.5,2455.4,2.40219356]
[1642899827708,1.01927,2456.5,2455.5,0.00511581]
[1642899828908,1.31927,2456.5,2455.5,0.00511581]
[1642899829107,1.31927,2456.5,2455.1,2.73809363]
[1642899829108,2.61927,2456.5,2455.1,2.73809363]
[1642899829307,2.61927,2456.5,2455.1,2.74548313]
[1642899829707,2.61927,2456.5,2455.3,1.34574207]
[1642899830106,2.61927,2456.5,2455.4,0.00568423]
[1642899830510,2.56927,2456.5,2455.4,1.27457704]
[1642899830707,1.01932,2456.2,2455.4,0.00568423]
[1642899830908,1.01932,2456.2,2455.2,1.5]
[1642899830909,26.47,2456.0,2455.2,1.5]
[1642899831168,1.492,2455.9,2454.9,0.00341054]
[1642899831359,1.49427369,2455.9,2454.9,0.00341054]
[1642899831558,0.00170527,2455.8,2454.8,0.00397896]
[1642899831759,0.492,2455.9,2455.8,0.00341054]
[1642899831959,1.95,2455.8,2454.9,1.25694407]
[1642899832159,5.36558813,2455.8,2454.5,0.0073895]
[1642899832359,5.38483605,2455.8,2455.0,0.00454739]
[1642899832559,1.0,2455.7,2454.5,0.0073895]
[1642899832758,4.14528236,2455.7,2454.5,0.0073895]
[1642899832962,3.14528236,2455.7,2454.5,0.0073895]
[1642899833158,3.14528236,2455.7,2454.5,1.46571507]
[1642899833159,1.0,2455.6,2454.5,1.46571507]
[1642899833359,2.31961,2455.6,2454.5,1.46571507]
[1642899833560,2.61961,2455.6,2454.6,0.00682108]
[1642899833760,3.157632,2455.5,2454.6,0.00682108]
[1642899833963,0.492,2455.4,2454.5,0.0073895]
[1642899834161,0.01724182,2455.3,2454.5,0.0073895]
[1642899834360,1.01992,2455.1,2454.5,0.0073895]
[1642899834562,1.0,2455.1,2454.5,0.0073895]
[1642899835011,0.492,2455.6,2454.8,1.55364704]
[1642899835312,6.1189,2455.8,2454.8,1.55364704]
[1642899835313,3.05931,2455.8,2454.9,0.00511581]
[1642899835611,0.492,2455.9,2454.9,0.00511581]
[1642899836409,0.492,2455.9,2454.8,1.14232946]
[1642899836607,0.792,2455.9,2454.9,0.00511581]
[1642899837010,25.37279789,2456.1,2454.9,0.00511581]
[1642899837208,25.37279789,2456.1,2454.9,1.2886948]
[1642899837209,26.39235789,2456.1,2454.9,1.2886948]
[1642899837408,0.00113685,2456.0,2454.9,1.2886948]
[1642899837611,0.00113685,2456.0,2455.2,1.08837782]
[1642899837810,0.00113685,2456.0,2455.4,0.02378301]
[1642899838011,0.00113685,2456.0,2455.3,0.00284212]
[1642899838212,0.00113685,2456.0,2455.5,0.00170527]
[1642899838409,0.00113685,2456.0,2455.3,0.00284212]